[Event "Titled Tuesday Blitz April 25 Early 2023"]
[White "Mouhamad, Joachim"]
[Black "Camacho Collados, Jose"]
[WhiteFideId "656410"]
[BlackFideId "2265427"]
[WhiteElo "2125"]
[BlackElo "2198"]
[Result "1-0"]
[Round "09"]
[TimeControl "180+2"]
[Date "2023.04.25"]
[WhiteClock "0:00:23"]
[BlackClock "0:00:25"]

1. e4 {[%clk 0:02:53]}  b6 {[%clk 0:02:57]} 2. d4 {[%clk 0:02:53]}  Bb7 {[%clk 0:02:58]} 3. Bd3 {[%clk 0:02:50]}  e6 {[%clk 0:02:58]} 4. Nf3 {[%clk 0:02:48]}  d5 {[%clk 0:02:58]} 5. Nc3 {[%clk 0:02:41]}  Bb4 {[%clk 0:02:56]} 6. exd5 {[%clk 0:02:38]}  Qxd5 {[%clk 0:02:56]} 7. Bd2 {[%clk 0:02:35]}  Qh5 {[%clk 0:02:53]} 8. O-O {[%clk 0:02:26]}  Bxf3 {[%clk 0:02:50]} 9. Qxf3 {[%clk 0:02:25]}  Qxf3 {[%clk 0:02:51]} 10. gxf3 {[%clk 0:02:26]}  Nf6 {[%clk 0:02:49]} 11. Kg2 {[%clk 0:02:18]}  Ke7 {[%clk 0:02:41]} 12. f4 {[%clk 0:02:19]}  Nc6 {[%clk 0:02:35]} 13. a3 {[%clk 0:02:08]}  Bd6 {[%clk 0:02:30]} 14. Be3 {[%clk 0:01:56]}  g6 {[%clk 0:02:23]} 15. Kf3 {[%clk 0:01:54]}  Nd5 {[%clk 0:02:20]} 16. Nb5 {[%clk 0:01:42]}  Rad8 {[%clk 0:02:05]} 17. c4 {[%clk 0:01:37]}  Nxe3 {[%clk 0:02:03]} 18. fxe3 {[%clk 0:01:36]}  a6 {[%clk 0:02:03]} 19. Nc3 {[%clk 0:01:12]}  Na5 {[%clk 0:01:54]} 20. b4 {[%clk 0:01:07]}  Nb7 {[%clk 0:01:47]} 21. Be4 {[%clk 0:01:03]}  Rb8 {[%clk 0:01:12]} 22. Bxb7 {[%clk 0:01:01]}  Rxb7 {[%clk 0:01:06]} 23. c5 {[%clk 0:01:02]}  bxc5 {[%clk 0:01:06]} 24. bxc5 {[%clk 0:01:02]}  Bxc5 {[%clk 0:01:04]} 25. dxc5 {[%clk 0:01:02]}  Rb3 {[%clk 0:01:05]} 26. Ne2 {[%clk 0:00:57]}  Rd8 {[%clk 0:01:03]} 27. Rfb1 {[%clk 0:00:46]}  Rdd3 {[%clk 0:01:02]} 28. Rxb3 {[%clk 0:00:45]}  Rxb3 {[%clk 0:01:03]} 29. Nd4 {[%clk 0:00:44]}  Rc3 {[%clk 0:01:01]} 30. c6 {[%clk 0:00:43]}  f6 {[%clk 0:01:01]} 31. Ke2 {[%clk 0:00:41]}  e5 {[%clk 0:01:01]} 32. fxe5 {[%clk 0:00:42]}  fxe5 {[%clk 0:01:01]} 33. Nf3 {[%clk 0:00:39]}  Kf6 {[%clk 0:00:59]} 34. Nd2 {[%clk 0:00:36]}  Rxc6 {[%clk 0:00:58]} 35. a4 {[%clk 0:00:30]}  h5 {[%clk 0:00:49]} 36. Ra3 {[%clk 0:00:27]}  g5 {[%clk 0:00:46]} 37. Rc3 {[%clk 0:00:26]}  Rxc3 {[%clk 0:00:44]} 38. Ne4+ {[%clk 0:00:27]}  Kf5 {[%clk 0:00:43]} 39. Nxc3 {[%clk 0:00:27]}  g4 {[%clk 0:00:35]} 40. a5 {[%clk 0:00:26]}  h4 {[%clk 0:00:30]} 41. Nd5 {[%clk 0:00:17]}  c5 {[%clk 0:00:21]} 42. Nc7 {[%clk 0:00:17]}  g3 {[%clk 0:00:20]} 43. hxg3 {[%clk 0:00:17]}  h3 {[%clk 0:00:21]} 44. Kf2 {[%clk 0:00:17]}  c4 {[%clk 0:00:16]} 45. Nxa6 {[%clk 0:00:17]}  c3 {[%clk 0:00:13]} 46. Nb4 {[%clk 0:00:18]}  h2 {[%clk 0:00:14]} 47. Kg2 {[%clk 0:00:18]}  Ke4 {[%clk 0:00:13]} 48. a6 {[%clk 0:00:18]}  Kxe3 {[%clk 0:00:13]} 49. a7 {[%clk 0:00:18]}  c2 {[%clk 0:00:14]} 50. Nxc2+ {[%clk 0:00:17]}  Kd2 {[%clk 0:00:15]} 51. Kxh2 {[%clk 0:00:18]}  Kxc2 {[%clk 0:00:14]} 52. a8=Q {[%clk 0:00:19]}  Kd3 {[%clk 0:00:15]} 53. Qf3+ {[%clk 0:00:19]}  Kd4 {[%clk 0:00:16]} 54. Kg2 {[%clk 0:00:19]}  e4 {[%clk 0:00:17]} 55. Qe2 {[%clk 0:00:19]}  Ke5 {[%clk 0:00:17]} 56. Kh3 {[%clk 0:00:19]}  Kf5 {[%clk 0:00:18]} 57. Kh4 {[%clk 0:00:20]}  Ke5 {[%clk 0:00:18]} 58. Qe3 {[%clk 0:00:21]}  Kf5 {[%clk 0:00:18]} 59. g4+ {[%clk 0:00:21]}  Ke5 {[%clk 0:00:19]} 60. g5 {[%clk 0:00:21]}  Kd5 {[%clk 0:00:20]} 61. Kh5 {[%clk 0:00:22]}  Ke5 {[%clk 0:00:21]} 62. g6 {[%clk 0:00:22]}  Kf6 {[%clk 0:00:22]} 63. Kh6 {[%clk 0:00:23]}  Kf5 {[%clk 0:00:23]} 64. Qf2+ {[%clk 0:00:23]}  Ke6 {[%clk 0:00:23]} 65. g7 {[%clk 0:00:24]}  Ke7 {[%clk 0:00:24]} 66. Qe3 {[%clk 0:00:24]}  Kf6 {[%clk 0:00:23]} 67. Qf4+ {[%clk 0:00:24]}  Ke7 {[%clk 0:00:23]} 68. Qxe4+ {[%clk 0:00:25]}  Kf7 {[%clk 0:00:24]} 69. Qf4+ {[%clk 0:00:24]}  Kg8 {[%clk 0:00:25]} 70. Qf8# {[%clk 0:00:23]} 1-0


[Site "https://www.chess.com"]

[Event "Titled Tuesday Blitz April 25 Early 2023"]
[White "Devaev, Alexander"]
[Black "Hoffmann, Asa"]
[WhiteFideId "4169395"]
[BlackFideId "2001470"]
[WhiteElo "2204"]
[BlackElo "2117"]
[Result "0-1"]
[Round "09"]
[TimeControl "180+2"]
[Date "2023.04.25"]
[WhiteClock "0:00:01"]
[BlackClock "0:00:19"]

1. Nf3 {[%clk 0:03:00]}  d6 {[%clk 0:02:55]} 2. d4 {[%clk 0:03:00]}  Bg4 {[%clk 0:02:50]} 3. Ng1 {[%clk 0:02:58]}  Nf6 {[%clk 0:02:45]} 4. h3 {[%clk 0:02:57]}  Bh5 {[%clk 0:02:40]} 5. c4 {[%clk 0:02:57]}  c6 {[%clk 0:02:39]} 6. Nc3 {[%clk 0:02:57]}  Nbd7 {[%clk 0:02:39]} 7. Bg5 {[%clk 0:02:40]}  e5 {[%clk 0:02:38]} 8. d5 {[%clk 0:02:39]}  Be7 {[%clk 0:02:36]} 9. Qb3 {[%clk 0:02:30]}  Qb6 {[%clk 0:02:34]} 10. Qxb6 {[%clk 0:02:13]}  axb6 {[%clk 0:02:34]} 11. Bd2 {[%clk 0:02:08]}  Nc5 {[%clk 0:02:32]} 12. f3 {[%clk 0:02:04]}  Nfd7 {[%clk 0:02:18]} 13. e4 {[%clk 0:01:59]}  Bh4+ {[%clk 0:02:12]} 14. Kd1 {[%clk 0:01:56]}  Nb3 {[%clk 0:02:05]} 15. Rb1 {[%clk 0:01:50]}  Nxd2 {[%clk 0:02:05]} 16. Kxd2 {[%clk 0:01:51]}  O-O {[%clk 0:01:57]} 17. Nge2 {[%clk 0:01:48]}  f5 {[%clk 0:01:49]} 18. exf5 {[%clk 0:01:48]}  Bg5+ {[%clk 0:01:25]} 19. Ke1 {[%clk 0:01:47]}  Nc5 {[%clk 0:01:23]} 20. Nc1 {[%clk 0:01:31]}  Be3 {[%clk 0:01:14]} 21. g4 {[%clk 0:01:30]}  Bf7 {[%clk 0:01:13]} 22. Nb3 {[%clk 0:00:39]}  g6 {[%clk 0:01:09]} 23. Nxc5 {[%clk 0:00:37]}  Bxc5 {[%clk 0:01:06]} 24. Bd3 {[%clk 0:00:37]}  Bb4 {[%clk 0:01:01]} 25. Be4 {[%clk 0:00:33]}  cxd5 {[%clk 0:00:59]} 26. cxd5 {[%clk 0:00:31]}  Rxa2 {[%clk 0:00:55]} 27. Kf1 {[%clk 0:00:27]}  Ra5 {[%clk 0:00:50]} 28. Rd1 {[%clk 0:00:25]}  Rc8 {[%clk 0:00:46]} 29. Rh2 {[%clk 0:00:22]}  Bxc3 {[%clk 0:00:41]} 30. Rc2 {[%clk 0:00:22]}  Rac5 {[%clk 0:00:40]} 31. Rdc1 {[%clk 0:00:23]}  gxf5 {[%clk 0:00:37]} 32. Bxf5 {[%clk 0:00:21]}  R8c7 {[%clk 0:00:35]} 33. Rxc3 {[%clk 0:00:20]}  Bxd5 {[%clk 0:00:33]} 34. Rxc5 {[%clk 0:00:15]}  Rxc5 {[%clk 0:00:33]} 35. Rxc5 {[%clk 0:00:15]}  bxc5 {[%clk 0:00:33]} 36. Kf2 {[%clk 0:00:16]}  Kg7 {[%clk 0:00:32]} 37. h4 {[%clk 0:00:13]}  b5 {[%clk 0:00:31]} 38. g5 {[%clk 0:00:10]}  b4 {[%clk 0:00:29]} 39. h5 {[%clk 0:00:07]}  c4 {[%clk 0:00:28]} 40. Ke3 {[%clk 0:00:07]}  Bf7 {[%clk 0:00:23]} 41. Bg4 {[%clk 0:00:07]}  d5 {[%clk 0:00:22]} 42. Kd2 {[%clk 0:00:03]}  d4 {[%clk 0:00:21]} 43. Kc2 {[%clk 0:00:02]}  c3 {[%clk 0:00:21]} 44. bxc3 {[%clk 0:00:02]}  bxc3 {[%clk 0:00:20]} 45. Kd3 {[%clk 0:00:01]}  Ba2 {[%clk 0:00:19]} 0-1


[Site "https://www.chess.com"]

[Event "Titled Tuesday Blitz April 25 Early 2023"]
[White "Lopez Del Alamo, Antonio"]
[Black "Escanor89"]
[WhiteFideId "2227339"]
[WhiteElo "2175"]
[BlackElo "2506"]
[Result "0-1"]
[Round "09"]
[TimeControl "180+2"]
[Date "2023.04.25"]
[WhiteClock "0:01:19"]
[BlackClock "0:00:17"]

1. e4 {[%clk 0:02:59]}  c5 {[%clk 0:01:07]} 2. Nf3 {[%clk 0:02:50]}  e6 {[%clk 0:01:07]} 3. d3 {[%clk 0:02:49]}  Nc6 {[%clk 0:01:07]} 4. g3 {[%clk 0:02:49]}  g6 {[%clk 0:01:07]} 5. d4 {[%clk 0:02:47]}  cxd4 {[%clk 0:01:06]} 6. Nxd4 {[%clk 0:02:47]}  d6 {[%clk 0:01:03]} 7. Bg2 {[%clk 0:02:46]}  a6 {[%clk 0:01:03]} 8. Nc3 {[%clk 0:02:42]}  Bg7 {[%clk 0:01:03]} 9. Be3 {[%clk 0:02:42]}  Nge7 {[%clk 0:01:03]} 10. O-O {[%clk 0:02:39]}  O-O {[%clk 0:01:03]} 11. Qd2 {[%clk 0:02:30]}  Qc7 {[%clk 0:01:03]} 12. Rfd1 {[%clk 0:02:28]}  Ne5 {[%clk 0:01:02]} 13. Qe2 {[%clk 0:02:14]}  Bd7 {[%clk 0:00:58]} 14. f4 {[%clk 0:02:09]}  Nc4 {[%clk 0:00:58]} 15. Bc1 {[%clk 0:02:10]}  Rac8 {[%clk 0:00:57]} 16. Kh1 {[%clk 0:02:04]}  Rfe8 {[%clk 0:00:55]} 17. b3 {[%clk 0:01:58]}  Na5 {[%clk 0:00:50]} 18. Bb2 {[%clk 0:01:58]}  b5 {[%clk 0:00:49]} 19. Rd2 {[%clk 0:01:55]}  Nac6 {[%clk 0:00:48]} 20. Nxc6 {[%clk 0:01:43]}  Bxc6 {[%clk 0:00:47]} 21. Rad1 {[%clk 0:01:42]}  b4 {[%clk 0:00:32]} 22. Nb1 {[%clk 0:01:37]}  Bxb2 {[%clk 0:00:31]} 23. Rxd6 {[%clk 0:01:34]}  Red8 {[%clk 0:00:28]} 24. e5 {[%clk 0:01:32]}  Bxg2+ {[%clk 0:00:27]} 25. Qxg2 {[%clk 0:01:30]}  Nf5 {[%clk 0:00:20]} 26. Rxd8+ {[%clk 0:01:27]}  Rxd8 {[%clk 0:00:21]} 27. Rxd8+ {[%clk 0:01:27]}  Qxd8 {[%clk 0:00:21]} 28. Nd2 {[%clk 0:01:28]}  Bc3 {[%clk 0:00:19]} 29. Nc4 {[%clk 0:01:27]}  Qd1+ {[%clk 0:00:19]} 30. Qg1 {[%clk 0:01:27]}  Qxc2 {[%clk 0:00:18]} 31. Qc5 {[%clk 0:01:20]}  Qe4+ {[%clk 0:00:17]} 32. Kg1 {[%clk 0:01:19]}  Bd4+ {[%clk 0:00:17]} 33. Kf1 {[%clk 0:01:19]}  Bxc5 {[%clk 0:00:17]} 0-1


[Site "https://www.chess.com"]

[Event "Titled Tuesday Blitz April 25 Early 2023"]
[White "Derichs, Roger"]
[Black "Begunov, Konstantin"]
[WhiteFideId "4630076"]
[BlackFideId "4118510"]
[WhiteElo "2359"]
[BlackElo "2087"]
[Result "0-1"]
[Round "09"]
[TimeControl "180+2"]
[Date "2023.04.25"]
[WhiteClock "0:00:03"]
[BlackClock "0:00:10"]

1. d4 {[%clk 0:03:00]}  d5 {[%clk 0:02:56]} 2. c4 {[%clk 0:03:01]}  c6 {[%clk 0:02:57]} 3. cxd5 {[%clk 0:03:00]}  cxd5 {[%clk 0:02:58]} 4. Bf4 {[%clk 0:03:00]}  Nf6 {[%clk 0:02:59]} 5. e3 {[%clk 0:03:00]}  Nc6 {[%clk 0:02:59]} 6. Nc3 {[%clk 0:03:00]}  a6 {[%clk 0:03:00]} 7. Bd3 {[%clk 0:02:59]}  Bg4 {[%clk 0:02:59]} 8. Nge2 {[%clk 0:02:59]}  e6 {[%clk 0:03:00]} 9. Rc1 {[%clk 0:02:58]}  Bd6 {[%clk 0:03:00]} 10. Bg5 {[%clk 0:02:58]}  O-O {[%clk 0:02:59]} 11. O-O {[%clk 0:02:50]}  Rc8 {[%clk 0:02:58]} 12. Na4 {[%clk 0:02:48]}  Bh5 {[%clk 0:02:25]} 13. f3 {[%clk 0:02:26]}  Bg6 {[%clk 0:02:24]} 14. Nc5 {[%clk 0:02:21]}  Bxc5 {[%clk 0:02:23]} 15. Rxc5 {[%clk 0:02:21]}  Qb6 {[%clk 0:02:23]} 16. Bxf6 {[%clk 0:02:14]}  gxf6 {[%clk 0:02:21]} 17. b3 {[%clk 0:01:34]}  Nb4 {[%clk 0:01:55]} 18. Bxg6 {[%clk 0:01:26]}  hxg6 {[%clk 0:01:54]} 19. a3 {[%clk 0:01:21]}  Nc6 {[%clk 0:01:49]} 20. b4 {[%clk 0:01:19]}  Ne7 {[%clk 0:01:37]} 21. Qc2 {[%clk 0:01:16]}  Kg7 {[%clk 0:01:29]} 22. Rc1 {[%clk 0:01:14]}  Rc6 {[%clk 0:01:23]} 23. Nf4 {[%clk 0:00:56]}  Rfc8 {[%clk 0:01:15]} 24. h4 {[%clk 0:00:56]}  Nf5 {[%clk 0:01:10]} 25. Qf2 {[%clk 0:00:50]}  Rxc5 {[%clk 0:01:01]} 26. dxc5 {[%clk 0:00:48]}  Qc7 {[%clk 0:00:56]} 27. g4 {[%clk 0:00:48]}  Ne7 {[%clk 0:00:53]} 28. g5 {[%clk 0:00:48]}  fxg5 {[%clk 0:00:49]} 29. hxg5 {[%clk 0:00:48]}  Qe5 {[%clk 0:00:49]} 30. Nh3 {[%clk 0:00:41]}  Rh8 {[%clk 0:00:47]} 31. f4 {[%clk 0:00:19]}  Qe4 {[%clk 0:00:39]} 32. Kh2 {[%clk 0:00:18]}  Nf5 {[%clk 0:00:33]} 33. Re1 {[%clk 0:00:18]}  Qd3 {[%clk 0:00:21]} 34. Qb2+ {[%clk 0:00:13]}  Kg8 {[%clk 0:00:19]} 35. Qe2 {[%clk 0:00:06]}  Qxa3 {[%clk 0:00:18]} 36. Rh1 {[%clk 0:00:03]}  Qxb4 {[%clk 0:00:16]} 37. Kg2 {[%clk 0:00:03]}  Qe4+ {[%clk 0:00:14]} 38. Kg1 {[%clk 0:00:03]}  Qxh1+ {[%clk 0:00:10]} 0-1


[Site "https://www.chess.com"]

[Event "Titled Tuesday Blitz April 25 Early 2023"]
[White "Gonzalez Zamora, Juan Carlos"]
[Black "Averjanov, Alexey"]
[WhiteFideId "3507548"]
[BlackFideId "14109867"]
[WhiteElo "2535"]
[BlackElo "2665"]
[Result "0-1"]
[Round "09"]
[TimeControl "180+2"]
[Date "2023.04.25"]
[WhiteClock "0:00:02"]
[BlackClock "0:01:16"]

1. e4 {[%clk 0:03:00]}  c6 {[%clk 0:02:56]} 2. d4 {[%clk 0:03:00]}  d5 {[%clk 0:02:57]} 3. exd5 {[%clk 0:03:01]}  cxd5 {[%clk 0:02:57]} 4. c4 {[%clk 0:03:02]}  Nf6 {[%clk 0:02:57]} 5. Nc3 {[%clk 0:03:02]}  e6 {[%clk 0:02:57]} 6. Nf3 {[%clk 0:03:03]}  Be7 {[%clk 0:02:57]} 7. cxd5 {[%clk 0:03:02]}  Nxd5 {[%clk 0:02:57]} 8. Bd3 {[%clk 0:03:03]}  Nc6 {[%clk 0:02:57]} 9. O-O {[%clk 0:03:03]}  O-O {[%clk 0:02:57]} 10. Re1 {[%clk 0:03:03]}  Bf6 {[%clk 0:02:57]} 11. Be3 {[%clk 0:03:02]}  Nxe3 {[%clk 0:02:56]} 12. fxe3 {[%clk 0:03:03]}  g6 {[%clk 0:02:56]} 13. Rc1 {[%clk 0:03:01]}  Bg7 {[%clk 0:02:56]} 14. Qe2 {[%clk 0:02:50]}  b6 {[%clk 0:02:57]} 15. Be4 {[%clk 0:02:49]}  Bb7 {[%clk 0:02:57]} 16. Nd2 {[%clk 0:02:43]}  Rc8 {[%clk 0:02:53]} 17. Bf3 {[%clk 0:02:34]}  Qe7 {[%clk 0:02:50]} 18. Qf2 {[%clk 0:02:21]}  Rfd8 {[%clk 0:02:49]} 19. Nf1 {[%clk 0:02:18]}  Nb4 {[%clk 0:02:44]} 20. Bxb7 {[%clk 0:02:15]}  Qxb7 {[%clk 0:02:45]} 21. Qe2 {[%clk 0:02:13]}  Nd5 {[%clk 0:02:44]} 22. Kh1 {[%clk 0:02:04]}  Nxc3 {[%clk 0:02:42]} 23. bxc3 {[%clk 0:02:05]}  Rc7 {[%clk 0:02:42]} 24. Nd2 {[%clk 0:01:57]}  Rdc8 {[%clk 0:02:42]} 25. Qd3 {[%clk 0:01:55]}  b5 {[%clk 0:02:41]} 26. Nb3 {[%clk 0:01:53]}  a6 {[%clk 0:02:40]} 27. Rc2 {[%clk 0:01:51]}  Qb6 {[%clk 0:02:39]} 28. Rec1 {[%clk 0:01:51]}  Bf8 {[%clk 0:02:39]} 29. c4 {[%clk 0:01:42]}  bxc4 {[%clk 0:02:37]} 30. Rxc4 {[%clk 0:01:43]}  Rxc4 {[%clk 0:02:37]} 31. Rxc4 {[%clk 0:01:43]}  Rxc4 {[%clk 0:02:37]} 32. Qxc4 {[%clk 0:01:44]}  h5 {[%clk 0:02:34]} 33. Kg1 {[%clk 0:01:40]}  Qd6 {[%clk 0:02:33]} 34. Nc5 {[%clk 0:01:33]}  a5 {[%clk 0:02:33]} 35. a4 {[%clk 0:01:25]}  e5 {[%clk 0:02:33]} 36. Ne4 {[%clk 0:01:21]}  Qb6 {[%clk 0:02:33]} 37. Qb5 {[%clk 0:01:07]}  Qc7 {[%clk 0:02:31]} 38. Qxe5 {[%clk 0:00:57]}  Qxe5 {[%clk 0:02:30]} 39. dxe5 {[%clk 0:00:56]}  Bg7 {[%clk 0:02:30]} 40. e6 {[%clk 0:00:50]}  fxe6 {[%clk 0:02:29]} 41. Kf2 {[%clk 0:00:47]}  Kf7 {[%clk 0:02:28]} 42. Ke2 {[%clk 0:00:46]}  Be5 {[%clk 0:02:27]} 43. h3 {[%clk 0:00:46]}  Ke7 {[%clk 0:02:26]} 44. Kd3 {[%clk 0:00:46]}  Kd7 {[%clk 0:02:26]} 45. Kc4 {[%clk 0:00:46]}  Kc6 {[%clk 0:02:25]} 46. Ng5 {[%clk 0:00:46]}  Kd7 {[%clk 0:02:23]} 47. Nf3 {[%clk 0:00:40]}  Bf6 {[%clk 0:02:21]} 48. e4 {[%clk 0:00:39]}  Bb2 {[%clk 0:02:19]} 49. Ne1 {[%clk 0:00:32]}  g5 {[%clk 0:02:14]} 50. Nd3 {[%clk 0:00:31]}  Ba1 {[%clk 0:02:15]} 51. Kb5 {[%clk 0:00:28]}  Bc3 {[%clk 0:02:14]} 52. Kc4 {[%clk 0:00:28]}  Bd2 {[%clk 0:02:12]} 53. Ne5+ {[%clk 0:00:26]}  Kd6 {[%clk 0:02:11]} 54. Nf3 {[%clk 0:00:27]}  Be3 {[%clk 0:02:06]} 55. Kd3 {[%clk 0:00:18]}  Bf4 {[%clk 0:02:04]} 56. Kd4 {[%clk 0:00:16]}  g4 {[%clk 0:01:56]} 57. hxg4 {[%clk 0:00:17]}  hxg4 {[%clk 0:01:57]} 58. Ne1 {[%clk 0:00:17]}  e5+ {[%clk 0:01:57]} 59. Kc4 {[%clk 0:00:17]}  Kc6 {[%clk 0:01:49]} 60. Nd3 {[%clk 0:00:17]}  Bg3 {[%clk 0:01:50]} 61. Nc1 {[%clk 0:00:16]}  Be1 {[%clk 0:01:46]} 62. Nd3 {[%clk 0:00:16]}  Bg3 {[%clk 0:01:46]} 63. Nc1 {[%clk 0:00:17]}  Be1 {[%clk 0:01:46]} 64. Ne2 {[%clk 0:00:13]}  Bd2 {[%clk 0:01:43]} 65. Ng3 {[%clk 0:00:13]}  Kd6 {[%clk 0:01:42]} 66. Nf5+ {[%clk 0:00:11]}  Ke6 {[%clk 0:01:43]} 67. Kd3 {[%clk 0:00:11]}  Bb4 {[%clk 0:01:42]} 68. Kc4 {[%clk 0:00:11]}  Bd2 {[%clk 0:01:41]} 69. Kd3 {[%clk 0:00:10]}  Bb4 {[%clk 0:01:41]} 70. Ne3 {[%clk 0:00:10]}  g3 {[%clk 0:01:39]} 71. Ke2 {[%clk 0:00:10]}  Kd6 {[%clk 0:01:37]} 72. Nf1 {[%clk 0:00:09]}  Kc5 {[%clk 0:01:36]} 73. Kd3 {[%clk 0:00:09]}  Be1 {[%clk 0:01:35]} 74. Ke2 {[%clk 0:00:09]}  Bf2 {[%clk 0:01:35]} 75. Nd2 {[%clk 0:00:06]}  Kb4 {[%clk 0:01:35]} 76. Kd3 {[%clk 0:00:04]}  Kxa4 {[%clk 0:01:33]} 77. Kc4 {[%clk 0:00:04]}  Be3 {[%clk 0:01:22]} 78. Nf3 {[%clk 0:00:04]}  Bf4 {[%clk 0:01:23]} 79. Ne1 {[%clk 0:00:03]}  Ka3 {[%clk 0:01:22]} 80. Kc3 {[%clk 0:00:01]}  Ka4 {[%clk 0:01:20]} 81. Kc4 {[%clk 0:00:01]}  Ka3 {[%clk 0:01:18]} 82. Kc3 {[%clk 0:00:01]}  a4 {[%clk 0:01:19]} 83. Nc2+ {[%clk 0:00:01]}  Ka2 {[%clk 0:01:19]} 84. Kb4 {[%clk 0:00:01]}  Kb2 {[%clk 0:01:19]} 85. Ne1 {[%clk 0:00:01]}  Kc1 {[%clk 0:01:18]} 86. Nd3+ {[%clk 0:00:01]}  Kd2 {[%clk 0:01:18]} 87. Nxf4 {[%clk 0:00:01]}  exf4 {[%clk 0:01:19]} 88. e5 {[%clk 0:00:02]}  f3 {[%clk 0:01:19]} 89. e6 {[%clk 0:00:02]}  fxg2 {[%clk 0:01:20]} 90. e7 {[%clk 0:00:03]}  g1=Q {[%clk 0:01:20]} 91. e8=Q {[%clk 0:00:04]}  Qd4+ {[%clk 0:01:20]} 92. Ka5 {[%clk 0:00:04]}  g2 {[%clk 0:01:16]} 93. Qg6 {[%clk 0:00:01]}  g1=Q {[%clk 0:01:16]} 94. Qh6+ {[%clk 0:00:02]}  Qge3 {[%clk 0:01:16]} 0-1


[Site "https://www.chess.com"]

[Event "Titled Tuesday Blitz April 25 Early 2023"]
[White "Gurevich, Dmitry"]
[Black "Lenaerts, Lennert"]
[WhiteFideId "2000407"]
[BlackFideId "211435"]
[WhiteElo "2506"]
[BlackElo "2334"]
[Result "1/2-1/2"]
[Round "09"]
[TimeControl "180+2"]
[Date "2023.04.25"]
[WhiteClock "0:00:20"]
[BlackClock "0:01:02"]

1. d4 {[%clk 0:03:00]}  d5 {[%clk 0:02:57]} 2. c4 {[%clk 0:03:00]}  c6 {[%clk 0:02:57]} 3. e3 {[%clk 0:03:00]}  Nf6 {[%clk 0:02:56]} 4. Nc3 {[%clk 0:03:00]}  Bf5 {[%clk 0:02:55]} 5. cxd5 {[%clk 0:02:59]}  cxd5 {[%clk 0:02:55]} 6. Qb3 {[%clk 0:02:59]}  Nc6 {[%clk 0:02:53]} 7. Qxb7 {[%clk 0:02:56]}  Bd7 {[%clk 0:02:53]} 8. Qb3 {[%clk 0:02:48]}  Rb8 {[%clk 0:02:53]} 9. Qd1 {[%clk 0:02:46]}  e5 {[%clk 0:02:54]} 10. Nf3 {[%clk 0:02:44]}  Bd6 {[%clk 0:02:54]} 11. dxe5 {[%clk 0:02:41]}  Nxe5 {[%clk 0:02:54]} 12. Nxe5 {[%clk 0:02:40]}  Bxe5 {[%clk 0:02:54]} 13. Be2 {[%clk 0:02:39]}  Qc7 {[%clk 0:02:50]} 14. h3 {[%clk 0:02:37]}  O-O {[%clk 0:02:50]} 15. O-O {[%clk 0:02:36]}  Rfd8 {[%clk 0:02:44]} 16. Bf3 {[%clk 0:02:28]}  Bf5 {[%clk 0:02:22]} 17. Qe2 {[%clk 0:02:11]}  Qc8 {[%clk 0:02:08]} 18. Rd1 {[%clk 0:02:02]}  Bxh3 {[%clk 0:02:07]} 19. Nxd5 {[%clk 0:01:52]}  Nxd5 {[%clk 0:02:06]} 20. Rxd5 {[%clk 0:01:48]}  Rxd5 {[%clk 0:02:04]} 21. Bxd5 {[%clk 0:01:47]}  Bg4 {[%clk 0:02:03]} 22. Qc4 {[%clk 0:01:40]}  Qf5 {[%clk 0:02:01]} 23. Bxf7+ {[%clk 0:01:30]}  Kh8 {[%clk 0:01:59]} 24. Bd5 {[%clk 0:01:28]}  Qh5 {[%clk 0:01:58]} 25. g3 {[%clk 0:01:23]}  Rc8 {[%clk 0:01:43]} 26. Qd3 {[%clk 0:01:19]}  Rd8 {[%clk 0:01:39]} 27. Qe4 {[%clk 0:01:16]}  h6 {[%clk 0:01:28]} 28. f4 {[%clk 0:00:53]}  Rxd5 {[%clk 0:01:27]} 29. Qxd5 {[%clk 0:00:51]}  Bf3 {[%clk 0:01:28]} 30. Qd8+ {[%clk 0:00:47]}  Kh7 {[%clk 0:01:28]} 31. Qd3+ {[%clk 0:00:47]}  g6 {[%clk 0:01:22]} 32. fxe5 {[%clk 0:00:39]}  Qh3 {[%clk 0:01:16]} 33. Kf2 {[%clk 0:00:36]}  Qg2+ {[%clk 0:01:11]} 34. Ke1 {[%clk 0:00:36]}  Qxg3+ {[%clk 0:01:12]} 35. Kd2 {[%clk 0:00:34]}  Qh2+ {[%clk 0:01:10]} 36. Kc3 {[%clk 0:00:33]}  Qxe5+ {[%clk 0:01:10]} 37. Qd4 {[%clk 0:00:33]}  Qc7+ {[%clk 0:01:11]} 38. Kd3 {[%clk 0:00:29]}  Bd1 {[%clk 0:01:09]} 39. Qc3 {[%clk 0:00:23]}  Qd6+ {[%clk 0:01:08]} 40. Kc4 {[%clk 0:00:22]}  Be2+ {[%clk 0:01:00]} 41. Kb3 {[%clk 0:00:22]}  Bd1+ {[%clk 0:01:01]} 42. Kc4 {[%clk 0:00:19]}  Be2+ {[%clk 0:01:01]} 43. Kb3 {[%clk 0:00:20]}  Bd1+ {[%clk 0:01:02]} 44. Kc4 {[%clk 0:00:20]} 1/2-1/2


[Site "https://www.chess.com"]